[Event "November 21 Late 2023"]
[Site "https://www.chess.com"]
[Date "2023.11.21"]
[Round "7"]
[White "Minko, Dmitry"]
[Black "Rose, Felix"]
[Result "1/2-1/2"]
[Board "107"]
[TimeControl "180+1"]
[WhiteFideId "24188468"]
[BlackFideId "5105722"]
[WhiteElo "1992"]
[BlackElo "2039"]
[WhiteTeam "FID"]
[BlackTeam "MEX"]
[WhiteClock "0:01:06"]
[BlackClock "0:00:44"]

1. e4 {[%clk 0:03:00]}  e5 {[%clk 0:02:58]} 2. Nf3 {[%clk 0:03:00]}  Nc6 {[%clk 0:02:58]} 3. d4 {[%clk 0:03:00]}  exd4 {[%clk 0:02:58]} 4. Nxd4 {[%clk 0:03:01]}  Nf6 {[%clk 0:02:58]} 5. Nc3 {[%clk 0:03:01]}  Bb4 {[%clk 0:02:58]} 6. Nxc6 {[%clk 0:03:02]}  bxc6 {[%clk 0:02:58]} 7. Bd3 {[%clk 0:03:03]}  d5 {[%clk 0:02:58]} 8. exd5 {[%clk 0:03:03]}  O-O {[%clk 0:02:59]} 9. O-O {[%clk 0:03:04]}  cxd5 {[%clk 0:02:59]} 10. Bg5 {[%clk 0:03:05]}  c6 {[%clk 0:02:59]} 11. Qf3 {[%clk 0:03:05]}  h6 {[%clk 0:02:59]} 12. Bxf6 {[%clk 0:03:05]}  Qxf6 {[%clk 0:03:00]} 13. Qxf6 {[%clk 0:03:06]}  gxf6 {[%clk 0:03:01]} 14. Ne2 {[%clk 0:03:07]}  Bd6 {[%clk 0:03:00]} 15. Rad1 {[%clk 0:02:59]}  Rb8 {[%clk 0:02:59]} 16. b3 {[%clk 0:02:59]}  a5 {[%clk 0:03:00]} 17. Nd4 {[%clk 0:02:54]}  c5 {[%clk 0:02:55]} 18. Nf5 {[%clk 0:02:54]}  Bxf5 {[%clk 0:02:55]} 19. Bxf5 {[%clk 0:02:54]}  d4 {[%clk 0:02:55]} 20. c3 {[%clk 0:02:54]}  Be5 {[%clk 0:02:48]} 21. f4 {[%clk 0:02:54]}  Bc7 {[%clk 0:02:47]} 22. cxd4 {[%clk 0:02:53]}  cxd4 {[%clk 0:02:48]} 23. Rf3 {[%clk 0:02:54]}  Rfd8 {[%clk 0:02:41]} 24. Rdf1 {[%clk 0:02:42]}  a4 {[%clk 0:02:32]} 25. Rg3+ {[%clk 0:02:41]}  Kf8 {[%clk 0:02:33]} 26. Rh3 {[%clk 0:02:39]}  axb3 {[%clk 0:02:30]} 27. axb3 {[%clk 0:02:40]}  d3 {[%clk 0:02:28]} 28. Bxd3 {[%clk 0:02:22]}  Rxb3 {[%clk 0:02:23]} 29. Bf5 {[%clk 0:02:22]}  Rxh3 {[%clk 0:02:22]} 30. Bxh3 {[%clk 0:02:23]}  Rd4 {[%clk 0:02:21]} 31. g3 {[%clk 0:02:19]}  Rd2 {[%clk 0:02:19]} 32. Bg2 {[%clk 0:02:16]}  Bb6+ {[%clk 0:02:18]} 33. Kh1 {[%clk 0:02:16]}  h5 {[%clk 0:02:16]} 34. h4 {[%clk 0:02:16]}  Bf2 {[%clk 0:02:09]} 35. Kh2 {[%clk 0:02:15]}  Kg7 {[%clk 0:02:07]} 36. Kh3 {[%clk 0:01:52]}  Rb2 {[%clk 0:01:52]} 37. Bf3 {[%clk 0:01:50]}  Kh6 {[%clk 0:01:44]} 38. g4 {[%clk 0:01:50]}  hxg4+ {[%clk 0:01:42]} 39. Kxg4 {[%clk 0:01:49]}  Be3 {[%clk 0:01:33]} 40. Re1 {[%clk 0:01:45]}  Bd2 {[%clk 0:01:29]} 41. Re8 {[%clk 0:01:42]}  Rb4 {[%clk 0:01:26]} 42. Be4 {[%clk 0:01:42]}  Kg7 {[%clk 0:01:08]} 43. h5 {[%clk 0:01:38]}  Be1 {[%clk 0:01:03]} 44. Bd5 {[%clk 0:01:25]}  Bd2 {[%clk 0:00:59]} 45. Be4 {[%clk 0:01:21]}  Rd4 {[%clk 0:00:57]} 46. Kf5 {[%clk 0:01:18]}  Rb4 {[%clk 0:00:52]} 47. h6+ {[%clk 0:01:12]}  Kxh6 {[%clk 0:00:50]} 48. Kxf6 {[%clk 0:01:13]}  Rb6+ {[%clk 0:00:43]} 49. Kf5 {[%clk 0:01:00]}  Kg7 {[%clk 0:00:42]} 50. Re7 {[%clk 0:00:57]}  Rf6+ {[%clk 0:00:39]} 51. Kg4 {[%clk 0:00:55]}  Rxf4+ {[%clk 0:00:39]} 52. Kg3 {[%clk 0:00:55]}  Rf6 {[%clk 0:00:37]} 53. Re8 {[%clk 0:00:51]}  Bf4+ {[%clk 0:00:36]} 54. Kg4 {[%clk 0:00:48]}  Bd6 {[%clk 0:00:34]} 55. Kg5 {[%clk 0:00:46]}  Bf4+ {[%clk 0:00:30]} 56. Kg4 {[%clk 0:00:47]}  Bc1 {[%clk 0:00:31]} 57. Re5 {[%clk 0:00:43]}  Rf4+ {[%clk 0:00:29]} 58. Kg3 {[%clk 0:00:42]}  Rf6 {[%clk 0:00:26]} 59. Rf5 {[%clk 0:00:41]}  Rxf5 {[%clk 0:00:25]} 60. Bxf5 {[%clk 0:00:41]}  Kf6 {[%clk 0:00:25]} 61. Bc2 {[%clk 0:00:42]}  Ke5 {[%clk 0:00:25]} 62. Bb1 {[%clk 0:00:43]}  Bf4+ {[%clk 0:00:24]} 63. Kf3 {[%clk 0:00:43]}  Bc1 {[%clk 0:00:25]} 64. Bc2 {[%clk 0:00:44]}  f6 {[%clk 0:00:25]} 65. Bb1 {[%clk 0:00:45]}  Bb2 {[%clk 0:00:26]} 66. Bc2 {[%clk 0:00:46]}  Bc3 {[%clk 0:00:27]} 67. Bb1 {[%clk 0:00:47]}  Kd4 {[%clk 0:00:27]} 68. Bc2 {[%clk 0:00:47]}  Kc5 {[%clk 0:00:28]} 69. Bh7 {[%clk 0:00:48]}  Be5 {[%clk 0:00:29]} 70. Bg6 {[%clk 0:00:49]}  Kd4 {[%clk 0:00:30]} 71. Bh7 {[%clk 0:00:50]}  Kc3 {[%clk 0:00:30]} 72. Bg8 {[%clk 0:00:50]}  Kd2 {[%clk 0:00:31]} 73. Bh7 {[%clk 0:00:51]}  Ke1 {[%clk 0:00:32]} 74. Bg8 {[%clk 0:00:52]}  Kd2 {[%clk 0:00:33]} 75. Bh7 {[%clk 0:00:53]}  Kc3 {[%clk 0:00:33]} 76. Bg8 {[%clk 0:00:54]}  Kd4 {[%clk 0:00:34]} 77. Ba2 {[%clk 0:00:55]}  Kc5 {[%clk 0:00:35]} 78. Bb1 {[%clk 0:00:56]}  Kd6 {[%clk 0:00:36]} 79. Bh7 {[%clk 0:00:56]}  Ba1 {[%clk 0:00:36]} 80. Bb1 {[%clk 0:00:57]}  Ke5 {[%clk 0:00:37]} 81. Ba2 {[%clk 0:00:58]}  f5 {[%clk 0:00:37]} 82. Bg8 {[%clk 0:00:59]}  f4 {[%clk 0:00:38]} 83. Ba2 {[%clk 0:01:00]}  Bd4 {[%clk 0:00:38]} 84. Bb1 {[%clk 0:01:01]}  Be3 {[%clk 0:00:39]} 85. Be4 {[%clk 0:01:02]}  Kd4 {[%clk 0:00:40]} 86. Ba8 {[%clk 0:01:03]}  Kc3 {[%clk 0:00:41]} 87. Be4 {[%clk 0:01:04]}  Kd2 {[%clk 0:00:42]} 88. Ba8 {[%clk 0:01:04]}  Kc3 {[%clk 0:00:43]} 89. Be4 {[%clk 0:01:05]}  Kd2 {[%clk 0:00:43]} 90. Ba8 {[%clk 0:01:06]}  Kc3 {[%clk 0:00:44]} 1/2-1/2

[Event "November 21 Late 2023"]
[Site "https://www.chess.com"]
[Date "2023.11.21"]
[Round "7"]
[White "Vemparala, Nikash"]
[Black "Marcziter, Dmitrii"]
[Result "0-1"]
[Board "108"]
[TimeControl "180+1"]
[WhiteFideId "30960967"]
[BlackFideId "13900765"]
[WhiteElo "2069"]
[BlackElo "2142"]
[WhiteTeam "USA"]
[BlackTeam "GER"]
[WhiteClock "0:00:06"]
[BlackClock "0:00:49"]

1. e4 {[%clk 0:03:00]}  c5 {[%clk 0:02:58]} 2. Nf3 {[%clk 0:03:00]}  a6 {[%clk 0:02:57]} 3. c3 {[%clk 0:02:59]}  d5 {[%clk 0:02:57]} 4. exd5 {[%clk 0:02:58]}  Qxd5 {[%clk 0:02:58]} 5. d4 {[%clk 0:02:58]}  Nf6 {[%clk 0:02:59]} 6. Be2 {[%clk 0:02:53]}  Bg4 {[%clk 0:02:58]} 7. O-O {[%clk 0:02:52]}  e6 {[%clk 0:02:57]} 8. Bf4 {[%clk 0:02:45]}  Nc6 {[%clk 0:02:55]} 9. Na3 {[%clk 0:02:33]}  cxd4 {[%clk 0:02:53]} 10. cxd4 {[%clk 0:02:31]}  Bxa3 {[%clk 0:02:48]} 11. bxa3 {[%clk 0:02:31]}  O-O {[%clk 0:02:48]} 12. Be5 {[%clk 0:02:13]}  Nd7 {[%clk 0:02:39]} 13. Rc1 {[%clk 0:01:51]}  Ndxe5 {[%clk 0:02:32]} 14. dxe5 {[%clk 0:01:44]}  Qxa2 {[%clk 0:02:26]} 15. Qd3 {[%clk 0:01:25]}  Rad8 {[%clk 0:02:19]} 16. Qe3 {[%clk 0:01:24]}  Qd5 {[%clk 0:02:04]} 17. Rfd1 {[%clk 0:01:13]}  Qa5 {[%clk 0:02:03]} 18. Re1 {[%clk 0:00:43]}  h6 {[%clk 0:01:58]} 19. h3 {[%clk 0:00:43]}  Bh5 {[%clk 0:01:54]} 20. Rb1 {[%clk 0:00:29]}  b5 {[%clk 0:01:52]} 21. Qe4 {[%clk 0:00:25]}  Ne7 {[%clk 0:01:45]} 22. Qb7 {[%clk 0:00:23]}  Nd5 {[%clk 0:01:42]} 23. Nd4 {[%clk 0:00:20]}  Bxe2 {[%clk 0:01:37]} 24. Nxe2 {[%clk 0:00:17]}  Qxa3 {[%clk 0:01:35]} 25. Ra1 {[%clk 0:00:17]}  Qb4 {[%clk 0:01:32]} 26. Qxa6 {[%clk 0:00:17]}  Qc4 {[%clk 0:01:21]} 27. Ng3 {[%clk 0:00:15]}  Rb8 {[%clk 0:01:15]} 28. Rac1 {[%clk 0:00:15]}  Qd4 {[%clk 0:01:10]} 29. Ne4 {[%clk 0:00:12]}  Nf4 {[%clk 0:01:05]} 30. Nc5 {[%clk 0:00:11]}  Rfc8 {[%clk 0:00:59]} 31. Qd6 {[%clk 0:00:10]}  Qd5 {[%clk 0:00:50]} 32. Qxd5 {[%clk 0:00:08]}  Nxd5 {[%clk 0:00:50]} 33. Rb1 {[%clk 0:00:06]}  Rxc5 {[%clk 0:00:49]} 0-1

[Event "November 21 Late 2023"]
[Site "https://www.chess.com"]
[Date "2023.11.21"]
[Round "7"]
[White "Bochnicka, Vladimir"]
[Black "rikchessmx"]
[Result "1-0"]
[Board "109"]
[TimeControl "180+1"]
[WhiteFideId "14943450"]
[WhiteElo "2170"]
[BlackElo "2308"]
[WhiteTeam "SVK"]
[WhiteClock "0:02:35"]
[BlackClock "0:00:11"]

1. e4 {[%clk 0:02:56]}  c5 {[%clk 0:02:55]} 2. Nf3 {[%clk 0:02:48]}  Nc6 {[%clk 0:02:55]} 3. d4 {[%clk 0:02:47]}  cxd4 {[%clk 0:02:55]} 4. Nxd4 {[%clk 0:02:48]}  Qb6 {[%clk 0:00:27]} 5. Nb3 {[%clk 0:02:42]}  g6 {[%clk 0:00:26]} 6. Nc3 {[%clk 0:02:42]}  Bg7 {[%clk 0:00:26]} 7. Be3 {[%clk 0:02:42]}  Qc7 {[%clk 0:00:25]} 8. Be2 {[%clk 0:02:40]}  Nf6 {[%clk 0:00:25]} 9. O-O {[%clk 0:02:41]}  d6 {[%clk 0:00:25]} 10. Kh1 {[%clk 0:02:40]}  O-O {[%clk 0:00:24]} 11. f4 {[%clk 0:02:41]}  e5 {[%clk 0:00:24]} 12. fxe5 {[%clk 0:02:39]}  Nxe5 {[%clk 0:00:23]} 13. Bg5 {[%clk 0:02:36]}  Nfg4 {[%clk 0:00:22]} 14. Nd5 {[%clk 0:02:35]}  Qc6 {[%clk 0:00:11]} 15. Ne7+ {[%clk 0:02:35]} 1-0

[Event "November 21 Late 2023"]
[Site "https://www.chess.com"]
[Date "2023.11.21"]
[Round "7"]
[White "Pace, Christopher"]
[Black "Curtis, John"]
[Result "1-0"]
[Board "110"]
[TimeControl "180+1"]
[WhiteFideId "2610167"]
[BlackFideId "3200256"]
[WhiteElo "2419"]
[BlackElo "2203"]
[WhiteTeam "CAN"]
[BlackTeam "AUS"]
[WhiteClock "0:01:07"]
[BlackClock "0:00:11"]

1. e4 {[%clk 0:03:00]}  c5 {[%clk 0:02:59]} 2. Nf3 {[%clk 0:03:01]}  d6 {[%clk 0:02:59]} 3. d4 {[%clk 0:03:01]}  cxd4 {[%clk 0:02:59]} 4. Nxd4 {[%clk 0:03:02]}  Nf6 {[%clk 0:02:59]} 5. Nc3 {[%clk 0:03:03]}  a6 {[%clk 0:02:59]} 6. a4 {[%clk 0:02:55]}  e5 {[%clk 0:02:57]} 7. Nb3 {[%clk 0:02:53]}  Be6 {[%clk 0:02:57]} 8. Be2 {[%clk 0:02:53]}  h6 {[%clk 0:02:55]} 9. Be3 {[%clk 0:02:53]}  Nbd7 {[%clk 0:02:54]} 10. O-O {[%clk 0:02:49]}  g5 {[%clk 0:02:53]} 11. f3 {[%clk 0:02:46]}  Rc8 {[%clk 0:02:52]} 12. a5 {[%clk 0:02:42]}  Be7 {[%clk 0:02:51]} 13. Nd5 {[%clk 0:02:42]}  Nxd5 {[%clk 0:02:48]} 14. exd5 {[%clk 0:02:43]}  Bf5 {[%clk 0:02:48]} 15. c4 {[%clk 0:02:43]}  Bh7 {[%clk 0:02:27]} 16. Rc1 {[%clk 0:02:39]}  O-O {[%clk 0:02:26]} 17. Qd2 {[%clk 0:02:23]}  f5 {[%clk 0:02:26]} 18. Rfd1 {[%clk 0:02:13]}  f4 {[%clk 0:02:10]} 19. Bf2 {[%clk 0:02:13]}  e4 {[%clk 0:02:02]} 20. fxe4 {[%clk 0:02:14]}  Bxe4 {[%clk 0:01:59]} 21. Nd4 {[%clk 0:02:03]}  Qe8 {[%clk 0:01:24]} 22. Ne6 {[%clk 0:01:56]}  Rf6 {[%clk 0:01:21]} 23. Bd4 {[%clk 0:01:56]}  Rxe6 {[%clk 0:01:08]} 24. dxe6 {[%clk 0:01:55]}  Nc5 {[%clk 0:01:09]} 25. Bxc5 {[%clk 0:01:55]}  Rxc5 {[%clk 0:01:07]} 26. Bd3 {[%clk 0:01:55]}  Qg6 {[%clk 0:01:05]} 27. Bxe4 {[%clk 0:01:53]}  Qxe4 {[%clk 0:01:05]} 28. Re1 {[%clk 0:01:54]}  Qf5 {[%clk 0:01:02]} 29. b4 {[%clk 0:01:52]}  Re5 {[%clk 0:01:02]} 30. Rxe5 {[%clk 0:01:47]}  dxe5 {[%clk 0:01:00]} 31. Qd5 {[%clk 0:01:39]}  Kg7 {[%clk 0:01:00]} 32. Re1 {[%clk 0:01:38]}  Kf6 {[%clk 0:00:59]} 33. c5 {[%clk 0:01:30]}  Qxe6 {[%clk 0:00:52]} 34. Qxb7 {[%clk 0:01:30]}  Qc4 {[%clk 0:00:49]} 35. Qe4 {[%clk 0:01:29]}  Qxe4 {[%clk 0:00:45]} 36. Rxe4 {[%clk 0:01:29]}  Kf5 {[%clk 0:00:46]} 37. Rc4 {[%clk 0:01:27]}  Ke6 {[%clk 0:00:45]} 38. c6 {[%clk 0:01:22]}  Kd5 {[%clk 0:00:43]} 39. c7 {[%clk 0:01:21]}  Kxc4 {[%clk 0:00:43]} 40. c8=Q+ {[%clk 0:01:22]}  Kxb4 {[%clk 0:00:44]} 41. Qxa6 {[%clk 0:01:22]}  Bc5+ {[%clk 0:00:43]} 42. Kf1 {[%clk 0:01:22]}  e4 {[%clk 0:00:43]} 43. Qb7+ {[%clk 0:01:22]}  Kxa5 {[%clk 0:00:42]} 44. Qxe4 {[%clk 0:01:22]}  Be3 {[%clk 0:00:40]} 45. Qg6 {[%clk 0:01:22]}  Kb4 {[%clk 0:00:40]} 46. Qxh6 {[%clk 0:01:22]}  f3 {[%clk 0:00:40]} 47. Qd6+ {[%clk 0:01:17]}  Kc3 {[%clk 0:00:39]} 48. Qc6+ {[%clk 0:01:16]}  Kd4 {[%clk 0:00:38]} 49. Qxf3 {[%clk 0:01:17]}  Bd2 {[%clk 0:00:35]} 50. Ke2 {[%clk 0:01:15]}  Bc1 {[%clk 0:00:29]} 51. g3 {[%clk 0:01:10]}  Ke5 {[%clk 0:00:13]} 52. Qc3+ {[%clk 0:01:09]}  Kf5 {[%clk 0:00:13]} 53. Qxc1 {[%clk 0:01:10]}  Kg4 {[%clk 0:00:14]} 54. Qc8+ {[%clk 0:01:08]}  Kh5 {[%clk 0:00:10]} 55. Kf3 {[%clk 0:01:07]}  g4+ {[%clk 0:00:10]} 56. Qxg4+ {[%clk 0:01:07]}  Kh6 {[%clk 0:00:11]} 57. Kf4 {[%clk 0:01:07]} 1-0

[Event "November 21 Late 2023"]
[Site "https://www.chess.com"]
[Date "2023.11.21"]
[Round "7"]
[White "kinghunter183"]
[Black "Kostiukov, Alexandr"]
[Result "0-1"]
[Board "112"]
[TimeControl "180+1"]
[BlackFideId "14108100"]
[WhiteElo "2164"]
[BlackElo "2144"]
[BlackTeam "UKR"]
[WhiteClock "0:00:04"]
[BlackClock "0:00:50"]

1. c4 {[%clk 0:03:00]}  c5 {[%clk 0:02:51]} 2. b3 {[%clk 0:02:57]}  Nf6 {[%clk 0:02:52]} 3. Bb2 {[%clk 0:02:55]}  g6 {[%clk 0:02:52]} 4. Nf3 {[%clk 0:02:54]}  Bg7 {[%clk 0:02:53]} 5. e3 {[%clk 0:02:54]}  O-O {[%clk 0:02:53]} 6. d4 {[%clk 0:02:52]}  cxd4 {[%clk 0:02:49]} 7. exd4 {[%clk 0:02:51]}  d5 {[%clk 0:02:49]} 8. c5 {[%clk 0:02:37]}  Nc6 {[%clk 0:02:49]} 9. a3 {[%clk 0:02:33]}  a5 {[%clk 0:02:47]} 10. Bb5 {[%clk 0:02:11]}  Ne4 {[%clk 0:02:40]} 11. Nbd2 {[%clk 0:02:01]}  Nxc5 {[%clk 0:02:32]} 12. O-O {[%clk 0:01:50]}  Ne4 {[%clk 0:02:21]} 13. Nxe4 {[%clk 0:01:38]}  dxe4 {[%clk 0:02:20]} 14. Ne5 {[%clk 0:01:25]}  Nxe5 {[%clk 0:02:07]} 15. dxe5 {[%clk 0:01:26]}  Qb6 {[%clk 0:02:06]} 16. Bc4 {[%clk 0:01:18]}  Bf5 {[%clk 0:02:00]} 17. Bd4 {[%clk 0:01:12]}  Qc7 {[%clk 0:01:51]} 18. Rc1 {[%clk 0:01:08]}  Qb8 {[%clk 0:01:49]} 19. Qe2 {[%clk 0:00:22]}  Bxe5 {[%clk 0:01:47]} 20. Bxe5 {[%clk 0:00:22]}  Qxe5 {[%clk 0:01:47]} 21. Kh1 {[%clk 0:00:21]}  Rad8 {[%clk 0:01:38]} 22. f3 {[%clk 0:00:20]}  Rd4 {[%clk 0:01:31]} 23. fxe4 {[%clk 0:00:18]}  Qxe4 {[%clk 0:01:23]} 24. Qf2 {[%clk 0:00:14]}  Rfd8 {[%clk 0:01:17]} 25. Rce1 {[%clk 0:00:13]}  Qh4 {[%clk 0:01:09]} 26. Qxh4 {[%clk 0:00:09]}  Rxh4 {[%clk 0:01:10]} 27. Rxe7 {[%clk 0:00:08]}  Rd7 {[%clk 0:00:59]} 28. Rxd7 {[%clk 0:00:08]}  Bxd7 {[%clk 0:00:59]} 29. Rxf7 {[%clk 0:00:08]}  Rxc4 {[%clk 0:00:58]} 30. bxc4 {[%clk 0:00:06]}  Kxf7 {[%clk 0:00:58]} 31. Kg1 {[%clk 0:00:06]}  Ke6 {[%clk 0:00:58]} 32. Kf2 {[%clk 0:00:07]}  Ke5 {[%clk 0:00:58]} 33. Ke3 {[%clk 0:00:07]}  Be6 {[%clk 0:00:58]} 34. Kd3 {[%clk 0:00:07]}  b6 {[%clk 0:00:58]} 35. g3 {[%clk 0:00:05]}  g5 {[%clk 0:00:58]} 36. Kc3 {[%clk 0:00:04]}  Ke4 {[%clk 0:00:57]} 37. Kb3 {[%clk 0:00:02]}  Kd4 {[%clk 0:00:56]} 38. Ka4 {[%clk 0:00:02]}  Bxc4 {[%clk 0:00:56]} 39. g4 {[%clk 0:00:03]}  Kc5 {[%clk 0:00:55]} 40. h4 {[%clk 0:00:03]}  Bb5+ {[%clk 0:00:53]} 41. Kb3 {[%clk 0:00:02]}  gxh4 {[%clk 0:00:53]} 42. g5 {[%clk 0:00:02]}  h3 {[%clk 0:00:54]} 43. g6 {[%clk 0:00:03]}  hxg6 {[%clk 0:00:54]} 44. a4 {[%clk 0:00:02]}  Bc4+ {[%clk 0:00:53]} 45. Kc3 {[%clk 0:00:01]}  h2 {[%clk 0:00:54]} 46. Kd2 {[%clk 0:00:02]}  h1=Q {[%clk 0:00:55]} 47. Ke3 {[%clk 0:00:02]}  Qh4 {[%clk 0:00:51]} 48. Kd2 {[%clk 0:00:02]}  Kd4 {[%clk 0:00:51]} 49. Kc2 {[%clk 0:00:03]}  Qf2+ {[%clk 0:00:51]} 50. Kb1 {[%clk 0:00:03]}  Kc3 {[%clk 0:00:51]} 51. Kc1 {[%clk 0:00:04]}  Qc2# {[%clk 0:00:50]} 0-1

[Event "November 21 Late 2023"]
[Site "https://www.chess.com"]
[Date "2023.11.21"]
[Round "7"]
[White "Skaric, Djuro"]
[Black "Ivanov, Aleksandr"]
[Result "1-0"]
[Board "114"]
[TimeControl "180+1"]
[WhiteFideId "934569"]
[BlackFideId "2092980"]
[WhiteElo "2282"]
[BlackElo "2069"]
[WhiteTeam "SRB"]
[BlackTeam "USA"]
[WhiteClock "0:02:59"]
[BlackClock "0:02:44"]

1. g3 {[%clk 0:03:00]}  d5 {[%clk 0:02:59]} 2. Bg2 {[%clk 0:02:58]}  c5 {[%clk 0:02:57]} 3. d3 {[%clk 0:02:57]}  e5 {[%clk 0:02:57]} 4. Nf3 {[%clk 0:02:58]}  Nc6 {[%clk 0:02:57]} 5. O-O {[%clk 0:02:58]}  Nf6 {[%clk 0:02:56]} 6. Nc3 {[%clk 0:02:59]}  Be7 {[%clk 0:02:53]} 7. e4 {[%clk 0:02:59]}  d4 {[%clk 0:02:53]} 8. Ne2 {[%clk 0:02:59]}  Be6 {[%clk 0:02:52]} 9. h3 {[%clk 0:02:59]}  Nd7 {[%clk 0:02:50]} 10. Ne1 {[%clk 0:02:59]}  b5 {[%clk 0:02:49]} 11. f4 {[%clk 0:02:59]}  f6 {[%clk 0:02:49]} 12. f5 {[%clk 0:02:59]}  Bf7 {[%clk 0:02:49]} 13. g4 {[%clk 0:03:00]}  c4 {[%clk 0:02:49]} 14. Rf2 {[%clk 0:03:00]}  Nc5 {[%clk 0:02:48]} 15. Bf1 {[%clk 0:03:00]}  Nxd3 {[%clk 0:02:44]} 16. cxd3 {[%clk 0:02:59]} 1-0

[Event "November 21 Late 2023"]
[Site "https://www.chess.com"]
[Date "2023.11.21"]
[Round "7"]
[White "Padalka, Artem"]
[Black "Lutz, Igor Oscar"]
[Result "1-0"]
[Board "118"]
[TimeControl "180+1"]
[WhiteFideId "14118637"]
[BlackFideId "2110806"]
[WhiteElo "2056"]
[BlackElo "1765"]
[WhiteTeam "POL"]
[BlackTeam "BRA"]
[WhiteClock "0:00:44"]
[BlackClock "0:00:09"]

1. d4 {[%clk 0:02:49]}  d5 {[%clk 0:02:54]} 2. c4 {[%clk 0:02:49]}  c6 {[%clk 0:02:54]} 3. e3 {[%clk 0:02:49]}  Nf6 {[%clk 0:02:54]} 4. Nc3 {[%clk 0:02:49]}  e6 {[%clk 0:02:54]} 5. Nf3 {[%clk 0:02:50]}  Bd6 {[%clk 0:02:55]} 6. Bd3 {[%clk 0:02:50]}  O-O {[%clk 0:02:55]} 7. e4 {[%clk 0:02:48]}  dxe4 {[%clk 0:02:55]} 8. Nxe4 {[%clk 0:02:46]}  Nxe4 {[%clk 0:02:55]} 9. Bxe4 {[%clk 0:02:47]}  h6 {[%clk 0:02:44]} 10. O-O {[%clk 0:02:44]}  Nd7 {[%clk 0:02:43]} 11. Bc2 {[%clk 0:02:43]}  e5 {[%clk 0:02:41]} 12. dxe5 {[%clk 0:02:39]}  Nxe5 {[%clk 0:02:35]} 13. Nxe5 {[%clk 0:02:08]}  Bxe5 {[%clk 0:02:28]} 14. Qf3 {[%clk 0:01:56]}  Qf6 {[%clk 0:02:22]} 15. Qb3 {[%clk 0:01:48]}  b6 {[%clk 0:02:08]} 16. Qd3 {[%clk 0:01:47]}  g6 {[%clk 0:02:02]} 17. Bxh6 {[%clk 0:01:46]}  Rd8 {[%clk 0:02:00]} 18. Qe3 {[%clk 0:01:35]}  Bd4 {[%clk 0:01:19]} 19. Qg3 {[%clk 0:01:21]}  Re8 {[%clk 0:01:02]} 20. Rae1 {[%clk 0:01:15]}  Ba6 {[%clk 0:01:01]} 21. b3 {[%clk 0:01:14]}  c5 {[%clk 0:00:43]} 22. Be4 {[%clk 0:01:10]}  Rac8 {[%clk 0:00:36]} 23. Bd5 {[%clk 0:01:07]}  Rxe1 {[%clk 0:00:24]} 24. Rxe1 {[%clk 0:01:07]}  Kh7 {[%clk 0:00:20]} 25. Bg5 {[%clk 0:01:04]}  Qf5 {[%clk 0:00:18]} 26. Qh3+ {[%clk 0:00:55]}  Kg8 {[%clk 0:00:16]} 27. Qxf5 {[%clk 0:00:55]}  gxf5 {[%clk 0:00:16]} 28. Re7 {[%clk 0:00:54]}  Rf8 {[%clk 0:00:15]} 29. Bh6 {[%clk 0:00:54]}  Bg7 {[%clk 0:00:14]} 30. Bxg7 {[%clk 0:00:55]}  Kxg7 {[%clk 0:00:15]} 31. Rxa7 {[%clk 0:00:55]}  Bc8 {[%clk 0:00:16]} 32. g3 {[%clk 0:00:54]}  Kf6 {[%clk 0:00:16]} 33. h4 {[%clk 0:00:53]}  Be6 {[%clk 0:00:14]} 34. Rb7 {[%clk 0:00:51]}  Bxd5 {[%clk 0:00:13]} 35. cxd5 {[%clk 0:00:52]}  Ke5 {[%clk 0:00:14]} 36. Rxb6 {[%clk 0:00:51]}  Kxd5 {[%clk 0:00:15]} 37. Rf6 {[%clk 0:00:50]}  Ke5 {[%clk 0:00:15]} 38. Rc6 {[%clk 0:00:49]}  Kd5 {[%clk 0:00:15]} 39. Rc7 {[%clk 0:00:50]}  f6 {[%clk 0:00:15]} 40. Kg2 {[%clk 0:00:49]}  Ra8 {[%clk 0:00:15]} 41. Rf7 {[%clk 0:00:44]}  Rxa2 {[%clk 0:00:14]} 42. Rxf6 {[%clk 0:00:44]}  Ke5 {[%clk 0:00:15]} 43. Rc6 {[%clk 0:00:44]}  Kd5 {[%clk 0:00:15]} 44. Rb6 {[%clk 0:00:44]}  Rb2 {[%clk 0:00:13]} 45. h5 {[%clk 0:00:44]}  c4 {[%clk 0:00:09]} 46. bxc4+ {[%clk 0:00:44]} 1-0

[Event "November 21 Late 2023"]
[Site "https://www.chess.com"]
[Date "2023.11.21"]
[Round "7"]
[White "Sarkar, Justin"]
[Black "Martins, Bruno Andre Leite"]
[Result "0-1"]
[Board "119"]
[TimeControl "180+1"]
[WhiteFideId "2010011"]
[BlackFideId "1942255"]
[WhiteElo "2138"]
[BlackElo "2307"]
[WhiteTeam "USA"]
[BlackTeam "POR"]
[WhiteClock "0:00:00"]
[BlackClock "0:00:43"]

1. d4 {[%clk 0:02:32]}  Nf6 {[%clk 0:02:48]} 2. c4 {[%clk 0:02:32]}  e6 {[%clk 0:02:44]} 3. Nc3 {[%clk 0:02:23]}  d5 {[%clk 0:02:45]} 4. Bg5 {[%clk 0:02:22]}  a6 {[%clk 0:02:35]} 5. e3 {[%clk 0:02:16]}  Bb4 {[%clk 0:02:22]} 6. Qb3 {[%clk 0:01:55]}  c5 {[%clk 0:02:16]} 7. dxc5 {[%clk 0:01:43]}  Nc6 {[%clk 0:02:10]} 8. O-O-O {[%clk 0:01:13]}  Qa5 {[%clk 0:01:26]} 9. Bxf6 {[%clk 0:00:53]}  gxf6 {[%clk 0:01:26]} 10. cxd5 {[%clk 0:00:53]}  exd5 {[%clk 0:01:26]} 11. Nxd5 {[%clk 0:00:48]}  Be6 {[%clk 0:01:25]} 12. Nxf6+ {[%clk 0:00:19]}  Kf8 {[%clk 0:01:24]} 13. Nd5 {[%clk 0:00:02]}  Rd8 {[%clk 0:01:13]} 14. e4 {[%clk 0:00:01]}  Bxc5 {[%clk 0:01:06]} 15. Qc3 {[%clk 0:00:01]}  Qxc3+ {[%clk 0:01:02]} 16. Nxc3 {[%clk 0:00:02]}  Rxd1+ {[%clk 0:00:46]} 17. Nxd1 {[%clk 0:00:02]}  Ke7 {[%clk 0:00:47]} 18. Nf3 {[%clk 0:00:01]}  Bxa2 {[%clk 0:00:46]} 19. Nd2 {[%clk 0:00:01]}  Be6 {[%clk 0:00:44]} 20. Bc4 {[%clk 0:00:00]}  Rc8 {[%clk 0:00:43]} 0-1

[Event "November 21 Late 2023"]
[Site "https://www.chess.com"]
[Date "2023.11.21"]
[Round "7"]
[White "Castillo Pena, Patricia Evarista"]
[Black "Jimenez Fernandez, Rebeca"]
[Result "0-1"]
[Board "124"]
[TimeControl "180+1"]
[WhiteFideId "6412106"]
[BlackFideId "32070934"]
[WhiteElo "1861"]
[BlackElo "2015"]
[WhiteTeam "DOM"]
[BlackTeam "ESP"]
[WhiteClock "0:01:44"]
[BlackClock "0:01:56"]

1. d4 {[%clk 0:03:00]}  d5 {[%clk 0:02:59]} 2. Nf3 {[%clk 0:02:59]}  Nf6 {[%clk 0:02:58]} 3. e3 {[%clk 0:02:59]}  e6 {[%clk 0:02:57]} 4. Bd3 {[%clk 0:02:59]}  c5 {[%clk 0:02:55]} 5. b3 {[%clk 0:02:59]}  Nc6 {[%clk 0:02:54]} 6. Bb2 {[%clk 0:02:59]}  b6 {[%clk 0:02:54]} 7. O-O {[%clk 0:02:58]}  Bd6 {[%clk 0:02:55]} 8. Ne5 {[%clk 0:02:58]}  O-O {[%clk 0:02:55]} 9. Nd2 {[%clk 0:02:58]}  Bb7 {[%clk 0:02:54]} 10. f4 {[%clk 0:02:58]}  Rc8 {[%clk 0:02:53]} 11. Rc1 {[%clk 0:02:57]}  Nb4 {[%clk 0:02:53]} 12. a3 {[%clk 0:02:48]}  Nxd3 {[%clk 0:02:50]} 13. cxd3 {[%clk 0:02:48]}  cxd4 {[%clk 0:02:49]} 14. exd4 {[%clk 0:02:48]}  Qe7 {[%clk 0:02:40]} 15. b4 {[%clk 0:02:46]}  a5 {[%clk 0:02:36]} 16. Qb3 {[%clk 0:02:38]}  axb4 {[%clk 0:02:32]} 17. axb4 {[%clk 0:02:37]}  Bxb4 {[%clk 0:02:32]} 18. Ndf3 {[%clk 0:02:32]}  h6 {[%clk 0:02:06]} 19. h3 {[%clk 0:01:44]}  Nh5 {[%clk 0:01:56]} 0-1